[Event "FIDE World School-ch O-15 2025"]
[Site "Vrnjacka Banja"]
[Date "2025.03.22"]
[Round "4.1"]
[White "Kabinazar, Nurmukhammed"]
[Black "Scheglov, Gleb"]
[Result "1-0"]
[Annotator "TA"]
[ECO "B11"]
[WhiteElo "2057"]
[BlackElo "2306"]
[PlyCount "87"]
[EventDate "2025.03.19"]
[EventType "swiss"]
[EventCountry "SRB"]
[SourceTitle "playchess.com"]
[Source "ChessBase"]
[SourceQuality "1"]
[TimeControl "5400+30"]

{[%evp 10,87,23,29,29,32,33,0,35,37,75,75,78,59,58,59,59,66,63,45,50,39,45,46,56,56,56,56,56,56,52,56,56,56,56,56,56,56,56,56,78,68,99,68,106,0,100,0,98,55,119,103,135,131,134,119,140,152,143,152,149,137,139,138,202,195,175,198,176,191,458,439,441,413,414,325,385,284,1114,1105]} 1. e4 {[%emt 1:31:00]} c6 {[%emt 0:02:24]} 2. Nf3 {[%emt 0:00:00]} d5 {[%emt 0:00:26]} 3. Nc3 {[%emt 0:00:00]} dxe4 {[%emt 0:01:09]} 4. Nxe4 {[%emt 0:00:00]} Nf6 {[%emt 0:00:08]} 5. Qe2 {[%emt 0:00:00]} Nxe4 {[%emt 0:00:10]} 6. Qxe4 {[%emt 0:00:00]} Qa5 {[%emt 0:03:09] B11: Caro-Kann: Two Knights Variation.} 7. Qf4 {[%emt 0:00:00]} Qf5 {[%emt 0:00:43] Inhibits Bd3.} 8. Qe3 {[%emt 0:00:00]} Qe6 {[%emt 0:00:06] The position is equal.} 9. b3 {[%emt 0:00:00]} Na6 {[%emt 0:14:39]} 10. Bxa6 {[%emt 0:00:00]} bxa6 {[%emt 0:00:01]} (10... Qxe3+ 11. fxe3 bxa6 12. Rg1 $14) 11. O-O $146 {[%emt 0:00:00] White is more active.} (11. Bb2 Qxe3+ 12. fxe3 f6 13. O-O-O e6 14. d4 Be7 15. e4 O-O 16. Rhe1 Rd8 17. Bc3 {0-1 Postlmayer,J (2182)-Kostenko,P (2365) Wch Blitz Almaty 2022 (17)}) 11... Qxe3 {[%emt 0:01:19]} 12. fxe3 {[%emt 0:00:00]} f6 {[%emt 0:06:16] Against Ne5. Black is weak on the dark squares} 13. Ba3 {[%emt 0:00:00]} Bg4 {[%emt 0:10:10]} 14. Ne1 {[%emt 0:00:00]} e5 {[%emt 0:13:48] Prevents Rf4.} 15. Bxf8 {[%emt 0:00:00]} Rxf8 {[%emt 0:00:03]} 16. e4 {[%emt 0:00:00]} O-O-O {[%emt 0:02:33]} 17. d3 {[%emt 0:00:00]} a5 {[%emt 0:00:34]} 18. a4 {[%emt 0:00:00]} Kc7 {[%emt 0:01:04]} 19. h3 {[%emt 0:00:00]} Be6 {[%emt 0:00:58]} 20. Nf3 {[%emt 0:00:00]} Kb6 {[%emt 0:01:36]} 21. Kf2 {[%emt 0:00:00]} Rd7 {[%emt 0:01:43]} 22. Ke3 {[%emt 0:00:00][%cal Of3e5]} Rfd8 {[%emt 0:00:09]} 23. Kd2 {[%emt 0:00:00]} Kc5 {[%emt 0:00:53]} 24. Kc3 {[%emt 0:00:00]} Kd6 {[%emt 0:09:31]} 25. Rf2 {[%emt 0:00:00]} Ke7 {[%emt 0:01:50]} 26. Nd2 {[%emt 0:00:00]} Rd4 {[%emt 0:03:33]} 27. Nf3 {[%emt 0:00:00]} R4d7 {[%emt 0:00:31]} 28. Nd2 {[%emt 0:00:00]} Rd4 $1 {[%emt 0:00:27]} 29. Nf1 {[%emt 0:00:00] Black is now going downhill.} Rb4 {[%emt 0:01:21]} (29... Rh8 $14) 30. Ne3 {[%emt 0:00:00]} h5 {[%emt 0:00:54]} 31. g4 $1 {[%emt 0:00:00]} hxg4 {[%emt 0:02:53]} 32. hxg4 {[%emt 0:00:00]} Rh8 {[%emt 0:00:16] [#] Inhibits Rh1.} 33. g5 $1 {[%emt 0:00:00][%mdl 512]} Rh3 {[%emt 0:05:43]} 34. gxf6+ {[%emt 0:00:00]} gxf6 {[%emt 0:00:01]} 35. Kd2 {[%emt 0:00:00]} Rb8 {[%emt 0:01:23]} 36. Rg1 {[%emt 0:00:00]} Kf7 {[%emt 0:09:39] [#]} (36... Rf8 $16 37. Rg7+ Rf7) 37. Rfg2 $1 $18 {[%emt 0:00:00]} Rh7 {[%emt 0:02:39] Inhibits Rg7+.} 38. Kc3 {[%emt 0:00:00]} Rb4 {[%emt 0:01:17]} 39. Rg8 {[%emt 0:00:00]} Ke7 $2 {[%emt 0:00:01]} (39... Rb7 40. Nc4 Bxc4) 40. R8g7+ {[%emt 0:00:00]} Rxg7 {[%emt 0:00:01]} 41. Rxg7+ {[%emt 0:00:00]} Bf7 {[%emt 0:00:00]} 42. Rh7 {[%emt 0:00:00]} Rb8 {[%emt 0:04:02]} 43. Nc4 {[%emt 0:00:00]} Rc8 $2 {[%emt 0:00:17] [#]} (43... Rf8 44. Nxa5 Kd7) 44. Rxf7+ $1 {[%emt 0:00:00][%mdl 512] Weighted Error Value: White=0.18 (very precise) /Black=0.37  Mistake:       	---       	Black=4      Inaccurate:     	White=3     	Black=5      OK:         	White=18    	Black=9      Best:        	---       	Black=3      Strong:       	White=1     	Black=1      Brilliant:      	White=1     	---} 1-0

[Event "FIDE World School-ch O-15 2025"]
[Site "Vrnjacka Banja"]
[Date "2025.03.22"]
[Round "4.2"]
[White "Tabatadze, Erekle"]
[Black "Dandeniya, D D L N"]
[Result "1-0"]
[Annotator "TA"]
[ECO "A41"]
[WhiteElo "2180"]
[BlackElo "1881"]
[PlyCount "121"]
[EventDate "2025.03.19"]
[EventType "swiss"]
[EventCountry "SRB"]
[SourceTitle "playchess.com"]
[Source "ChessBase"]
[SourceQuality "1"]
[TimeControl "5400+30"]

{[%evp 9,120,13,12,20,20,20,25,18,71,56,68,73,70,16,22,-23,-25,-28,-18,-20,-16,-22,-12,-7,12,-125,-117,-119,-104,-91,-77,-114,-107,-129,-81,-37,0,0,0,0,0,-102,-117,-122,-106,-118,-98,-104,-98,-118,-108,-106,-103,-168,-93,-122,-113,-182,-122,-132,-69,-260,-258,-247,-139,-150,-71,-70,0,-28,0,0,0,0,74,137,89,51,130,177,253,252,233,244,409,408,409,403,463,478,483,465,450,358,417,50,46,0,447,418,454,184,653,561,4952,4098,29988,29988,29991,29990,29995,29996,29999]} 1. d4 {[%emt 0:00:00]} d6 {[%emt 0:04:12]} 2. c4 {[%emt 0:05:45]} e5 {[%emt 0:00:10]} 3. d5 {[%emt 0:00:24]} f5 {[%emt 0:00:13]} 4. e4 {[%emt 0:00:05]} fxe4 {[%emt 0:00:13]} 5. Nc3 {[%emt 0:00:10]} Nf6 {[%emt 0:00:10]} 6. Nge2 {[%emt 0:00:12][%mdl 1024] White has compensation. A41: 1 d4 d6: Tartakower System and Modern Defence.} Bf5 {[%emt 0:00:14]} 7. Ng3 {[%emt 0:00:14]} Bg6 {[%emt 0:00:10]} 8. Bg5 {[%emt 0:00:27] White has an edge.} Be7 {[%emt 0:00:53]} (8... Nbd7 $11 {keeps the balance.}) 9. h4 $1 $16 {[%emt 0:17:40]} h6 {[%emt 0:00:48]} 10. Bxf6 {[%emt 0:02:36]} Bxf6 {[%emt 0:00:17]} 11. h5 {[%emt 0:09:14]} (11. Ncxe4 $14 Nd7 12. Qg4) 11... Bh7 $11 {[%emt 0:01:43][%cal Oe4e3]} 12. Ncxe4 $146 {[%emt 0:00:36]} (12. Ngxe4 Nd7 13. Bd3 O-O 14. Qc2 Kh8 15. O-O-O Be7 16. f3 a6 17. Kb1 Qb8 18. Rhe1 {0-1 Heberla,B (2562)-Petrosian,T (2573) Wch Blitz Warsaw 2021 (1)}) 12... O-O {[%emt 0:00:33]} 13. Bd3 {[%emt 0:08:57]} Nd7 {[%emt 0:00:39]} 14. Qg4 {[%emt 0:01:48] Dodges Bh4} Kh8 {[%emt 0:04:21]} 15. Rd1 {[%emt 0:05:16]} Be7 {[%emt 0:06:32]} 16. Ne2 {[%emt 0:02:17]} Rc8 {[%emt 0:07:07] Black is weak on the light squares} 17. Rh3 {[%emt 0:05:45]} (17. N2c3 $11) 17... Bf5 $17 {[%emt 0:00:36]} 18. Qf3 {[%emt 0:01:12]} Bxh3 {[%emt 0:09:16]} 19. Qxh3 {[%emt 0:00:16]} c6 {[%emt 0:01:48]} 20. Bb1 {[%emt 0:06:33]} cxd5 {[%emt 0:10:21]} 21. cxd5 {[%emt 0:00:31]} Qa5+ {[%emt 0:29:06]} (21... Bh4 $142 22. g3 Be7) 22. N2c3 {[%emt 0:01:39]} Nf6 {[%emt 0:01:37]} 23. Qf5 {[%emt 0:05:27] White wants to mate with Nxf6.} Nh7 {[%emt 0:08:16]} (23... Nxe4 $2 24. Qxe4 $18) 24. Qg6 {[%emt 0:01:42]} Rf4 {[%emt 0:00:32]} 25. Qe6 {[%emt 0:09:30]} (25. Nxd6 $11 {was the only way to keep the balance.} Nf8 26. Nf7+ Kg8 27. Nxh6+ Kh8 28. Nf7+ Kg8 29. Nh6+) 25... Qd8 {[%emt 0:01:09]} 26. g3 {[%emt 0:00:36]} Nf8 {[%emt 0:00:35]} 27. Qh3 {[%emt 0:00:05]} Rf7 {[%emt 0:00:22]} 28. Bd3 {[%emt 0:03:47]} a6 {[%emt 0:00:43]} 29. Be2 {[%emt 0:00:41]} b5 {[%emt 0:03:58]} 30. a3 {[%emt 0:00:20]} Rb8 {[%emt 0:01:37]} 31. b4 {[%emt 0:01:47]} (31. Kf1 $17) 31... Qd7 {[%emt 0:01:06]} (31... Qb6 $19 32. Bg4 Nh7) 32. Bg4 {[%emt 0:00:39]} Qc7 {[%emt 0:00:02]} 33. Rd3 {[%emt 0:02:10]} (33. Bf5 $17 {keeps fighting.}) 33... Qc4 {[%emt 0:01:32]} ({Black should try} 33... a5 $19 {...axb4 is the strong threat.} 34. Be2 Nh7 35. bxa5 Kg8 (35... Qxa5 $2 36. Qd7 $19)) 34. Qf1 {[%emt 0:01:38] [#]} a5 {[%emt 0:01:00]} 35. Qe2 $2 {[%emt 0:02:47]} (35. Rd2 $15) 35... axb4 $19 {[%emt 0:01:09]} 36. Nd2 {[%emt 0:00:48]} Qc7 {[%emt 0:00:38]} (36... bxc3 $19 37. Nxc4 bxc4) 37. axb4 $17 {[%emt 0:00:06]} Bd8 {[%emt 0:01:26]} (37... Nh7 $142 38. Be6 Rff8) 38. Kf1 {[%emt 0:01:36]} Qe7 {[%emt 0:01:04]} (38... Nh7 $15) 39. Nde4 {[%emt 0:00:58]} Bb6 {[%emt 0:02:35]} (39... Nh7 {keeps more tension.} 40. Kg2 Rf8 41. Rf3 Rxf3 42. Qxf3 Bb6) 40. Nxb5 {[%emt 0:00:59]} Bxf2 {[%emt 0:00:21]} 41. Nbxd6 {[%emt 0:00:11] Excellent horsemanship.} (41. Nexd6 Rf6 42. Ne4 Bxg3+ 43. Nxf6 Qxf6+ 44. Qf3 Rxb5 (44... Bf4 45. Nc3 $11)) 41... Bxg3+ {[%emt 0:00:41]} (41... Bd4+ $1 $11 42. Nxf7+ Qxf7+ 43. Kg2 Qxd5) 42. Nxf7+ $16 {[%emt 0:00:07]} Qxf7+ {[%emt 0:00:01]} 43. Kg2 {[%emt 0:00:52]} (43. Qf3 {simplifies} Qxf3+ 44. Rxf3 Bh4 45. b5) 43... Bf4 {[%emt 0:00:17]} (43... Bh4 $1 $14) 44. d6 {[%emt 0:00:47]} Qb7 {[%emt 0:01:27]} (44... Rd8 $142 45. d7 Qe7 (45... Nxd7 $2 46. Nc5 $18)) 45. d7 $18 {[%emt 0:01:46]} Rd8 {[%emt 0:00:46]} 46. Qf3 {[%emt 0:00:40]} Qxb4 {[%emt 0:00:41]} (46... Nxd7 47. Nd6 Qxf3+ 48. Kxf3 Rb8) 47. Nd6 $1 {[%emt 0:00:08]} Qb2+ {[%emt 0:00:18]} 48. Kf1 {[%emt 0:01:34] Black must now prevent Nf7+.} (48. Qf2 Qb1 $18 (48... Qxf2+ $2 49. Kxf2 e4 50. Nxe4 $18)) 48... Qa1+ {[%emt 0:00:41]} 49. Rd1 {[%emt 0:01:01]} (49. Qd1 Qa2 $18) 49... Qa2 {[%emt 0:01:04] Repels Nf7+} 50. Nb7 {[%emt 0:00:38]} Qa6+ {[%emt 0:00:00]} 51. Kg2 {[%emt 0:00:31]} Qa2+ {[%emt 0:00:15] [#]} 52. Qf2 $2 {[%emt 0:00:19]} (52. Kg1 $1 $18 Qh2+ 53. Kf1 Rxd7 (53... e4 $2 54. Qxe4 $18) 54. Bxd7) 52... Qa8 $14 {[%emt 0:00:24]} 53. Qf3 {[%emt 0:00:18][%mdl 8192]} (53. Qb2 $1 $14) 53... Qa2+ $18 {[%emt 0:00:02] [#]} 54. Kg1 $1 {[%emt 0:00:52]} e4 {[%emt 0:01:15]} 55. Qxe4 {[%emt 0:00:27]} (55. Qxf4 Qa7+ 56. Qf2 Qxb7 $11) (55. Qf2 $142 Qxf2+ 56. Kxf2 Rxd7 57. Bxd7) 55... Bg3 $2 {[%emt 0:00:28]} (55... Bh2+ 56. Kh1 Bc7) 56. Qg2 {[%emt 0:00:31] Active counter play!} (56. Nxd8 $2 {leads to mate.} Qh2+ 57. Kf1 Qf2#) 56... Qa4 {[%emt 0:00:21]} 57. Nxd8 {[%emt 0:00:19]} ({Weaker is} 57. Qxg3 Qa7+ 58. Qf2 Qxb7 $16) 57... Qxg4 {[%emt 0:00:04]} 58. Nf7+ {[%emt 0:00:05] White mates.} Kg8 {[%emt 0:00:13]} 59. d8=Q {[%emt 0:01:41]} Kxf7 {[%emt 0:00:01]} 60. Qgd5+ {[%emt 0:00:00]} Ne6 {[%emt 0:00:01]} 61. Q5d7# {[%emt 0:00:00] What a bad dream for Black.   Weighted Error Value: White=0.39/Black=0.53  Loses game:     	White=1     	---        Missed win:     	White=1     	---        Mistake:       	White=7     	Black=13     Inaccurate:     	White=5     	Black=4      OK:         	White=18    	Black=17     Best:        	White=5     	Black=5      Strong:       	White=3     	---} 1-0

[Event "FIDE World School-ch O-15 2025"]
[Site "Vrnjacka Banja"]
[Date "2025.03.22"]
[Round "4.3"]
[White "Kim, Yejun"]
[Black "Mane, Arnav"]
[Result "1/2-1/2"]
[Annotator "NA RC"]
[ECO "B23"]
[WhiteElo "1798"]
[BlackElo "1748"]
[PlyCount "85"]
[EventDate "2025.03.19"]
[EventType "swiss"]
[EventCountry "SRB"]
[SourceTitle "playchess.com"]
[Source "ChessBase"]
[SourceQuality "1"]
[TimeControl "5400+30"]

1. e4 {[%emt 0:00:01]} c5 {[%emt 0:00:33]} 2. Nc3 {[%emt 0:00:05]} g6 {[%emt 0:00:07]} 3. f4 {[%emt 0:00:03]} Bg7 {[%emt 0:00:06]} 4. Nf3 {[%emt 0:00:05]} Nc6 {[%emt 0:00:12]} 5. Bb5 {[%emt 0:00:04]} Nd4 {[%emt 0:00:07]} 6. O-O {[%emt 0:00:08]} Nxb5 {[%emt 0:00:22]} 7. Nxb5 {[%emt 0:00:06]} d5 {[%emt 0:00:10]} 8. e5 {[%emt 0:01:11]} a6 {[%emt 0:03:01]} 9. Nc3 {[%emt 0:00:06]} e6 {[%emt 0:06:24]} 10. d4 {[%emt 0:05:13]} Qc7 {[%emt 0:05:41]} 11. Be3 {[%emt 0:00:12]} cxd4 {[%emt 0:01:48]} 12. Nxd4 {[%emt 0:01:27]} Ne7 {[%emt 0:00:57]} 13. Qd2 {[%emt 0:01:28]} O-O {[%emt 0:02:54]} 14. a4 {[%emt 0:01:49]} f6 {[%emt 0:09:32]} 15. exf6 {[%emt 0:02:29]} Bxf6 {[%emt 0:04:01]} 16. a5 {[%emt 0:00:24]} Nc6 {[%emt 0:01:01]} 17. Nxc6 {[%emt 0:04:05]} Qxc6 {[%emt 0:10:25]} 18. Bd4 {[%emt 0:00:35]} Bd7 {[%emt 0:02:22]} 19. Bxf6 {[%emt 0:06:05]} Rxf6 {[%emt 0:01:11]} 20. Qd4 {[%emt 0:00:07]} Raf8 {[%emt 0:00:42]} 21. g3 {[%emt 0:00:23]} Qc7 {[%emt 0:06:04]} 22. Rfe1 {[%emt 0:02:01]} Rf5 {[%emt 0:05:00]} 23. Na4 {[%emt 0:04:18]} Bxa4 {[%emt 0:00:57]} 24. Rxa4 {[%emt 0:00:06]} Qxc2 {[%emt 0:06:56]} 25. Rxe6 {[%emt 0:00:12]} Qb1+ {[%emt 0:01:57]} 26. Kg2 {[%emt 0:04:49]} Rc8 {[%emt 0:02:40]} 27. Re2 {[%emt 0:00:08]} Rc1 {[%emt 0:02:32]} 28. Rb4 {[%emt 0:08:47]} Rc2 {[%emt 0:02:37]} 29. Qd3 {[%emt 0:00:05]} Rxe2+ {[%emt 0:01:29]} 30. Qxe2 {[%emt 0:00:05]} Rf7 {[%emt 0:02:54]} 31. Qe8+ {[%emt 0:02:24]} Kg7 {[%emt 0:01:12]} 32. Qe5+ {[%emt 0:00:06]} Kh6 {[%emt 0:01:51]} 33. g4 {[%emt 0:00:24]} Qd1 {[%emt 0:03:36]} 34. g5+ {[%emt 0:01:47]} Kh5 {[%emt 0:00:11]} 35. Kf2 {[%emt 0:15:16]} Qd2+ {[%emt 0:03:11]} 36. Qe2+ {[%emt 0:00:05]} Qxe2+ {[%emt 0:00:02]} 37. Kxe2 {[%emt 0:00:06]} Kg4 {[%emt 0:00:16]} 38. Ke3 {[%emt 0:00:19]} Re7+ {[%emt 0:00:41]} 39. Kf2 {[%emt 0:00:05]} Rc7 {[%emt 0:00:45]} 40. Ke3 {[%emt 0:02:10]} Re7+ {[%emt 0:00:49]} 41. Kf2 {[%emt 0:00:05]} Kh3 {[%emt 0:04:56]} 42. Rd4 {[%emt 0:00:08]} Kg4 {[%emt 0:01:24]} 43. Rb4 {[%emt 0:00:04]} 1/2-1/2

[Event "FIDE World School-ch O-15 2025"]
[Site "Vrnjacka Banja"]
[Date "2025.03.22"]
[Round "4.4"]
[White "Harabor, David-Alexandru"]
[Black "Durucay, Uygar"]
[Result "1/2-1/2"]
[Annotator "TA"]
[ECO "B12"]
[WhiteElo "1989"]
[BlackElo "2159"]
[PlyCount "109"]
[EventDate "2025.03.19"]
[EventType "swiss"]
[EventCountry "SRB"]
[SourceTitle "playchess.com"]
[Source "ChessBase"]
[SourceQuality "1"]
[TimeControl "5400+30"]

{[%evp 9,109,2,-7,-8,-8,-2,-6,-7,8,-8,10,-5,0,0,0,0,0,0,-7,0,40,16,9,-2,-22,-22,-14,-29,-19,-21,-25,-41,-41,-49,-42,-37,-20,-20,-20,-20,-11,-16,-13,-17,-11,-12,0,0,0,-22,-27,-45,-45,-47,-43,-42,-43,-45,-31,-56,-15,-15,-15,-22,0,0,-4,0,0,-8,-8,-44,-39,-45,0,0,0,0,0,0,0,0,0,0,0,0,0,0,0,0,0,0,0,0,0,0,0,0,0,0,0,0]} 1. e4 {[%emt 0:00:10]} c6 {[%emt 0:00:58]} 2. d4 {[%emt 0:00:10]} d5 {[%emt 0:00:10]} 3. f3 {[%emt 0:00:28]} Qb6 {[%emt 0:03:38]} 4. Nc3 {[%emt 0:05:04]} dxe4 {[%emt 0:01:02]} 5. fxe4 {[%emt 0:01:13]} e5 $1 {[%emt 0:00:10]} 6. Nf3 {[%emt 0:03:39] B12: Caro-Kann: Advance Variation.} exd4 {[%emt 0:00:10]} 7. Qxd4 {[%emt 0:00:02]} Qxd4 {[%emt 0:10:39]} 8. Nxd4 {[%emt 0:00:04]} Bc5 {[%emt 0:05:24]} 9. Nb3 {[%emt 0:05:05]} Bd6 {[%emt 0:01:50]} 10. Be3 {[%emt 0:02:58]} Nd7 {[%emt 0:00:55] Not much happening anymore} 11. O-O-O {[%emt 0:00:16]} Be5 {[%emt 0:00:22]} 12. Nd4 {[%emt 0:06:49]} Ngf6 {[%emt 0:02:45]} 13. Be2 $146 {[%emt 0:00:15]} ({Predecessor:} 13. Bc4 Ng4 14. Bg1 Bf4+ 15. Kb1 Nde5 16. Bb3 g6 17. Nf3 f6 18. Ne2 Be3 19. Nxe5 fxe5 {½-½ Gergacz,A (2425)-Kreisl,R (2376) AUT-chT2M 1011 2010 (3)}) 13... Nb6 {[%emt 0:12:20]} 14. h3 {[%emt 0:08:36] Repels Bg4} Be6 {[%emt 0:12:12]} 15. Nxe6 {[%emt 0:03:50]} fxe6 {[%emt 0:00:06]} 16. Bd4 {[%emt 0:00:21]} Bxd4 {[%emt 0:01:39]} 17. Rxd4 {[%emt 0:00:02]} Nfd7 {[%emt 0:04:57]} 18. Rf1 {[%emt 0:00:39]} Ne5 {[%emt 0:00:44]} 19. b3 {[%emt 0:02:53]} Ke7 {[%emt 0:01:35]} 20. Kb2 {[%emt 0:03:36]} Rhf8 {[%emt 0:03:03]} 21. Rdd1 {[%emt 0:02:25]} Rxf1 {[%emt 0:00:56]} 22. Rxf1 {[%emt 0:00:20]} Nbd7 {[%emt 0:01:08]} 23. Kc1 {[%emt 0:02:21]} b5 {[%emt 0:02:32]} 24. Kd2 {[%emt 0:08:02]} a5 {[%emt 0:00:13]} 25. a4 {[%emt 0:04:18]} b4 {[%emt 0:00:25]} 26. Nd1 {[%emt 0:01:30]} Rc8 {[%emt 0:07:37]} 27. Nb2 {[%emt 0:07:03]} c5 {[%emt 0:03:45]} 28. Rc1 {[%emt 0:10:42]} Nc6 {[%emt 0:20:15]} 29. Ke3 {[%emt 0:08:17]} Nde5 {[%emt 0:00:44]} 30. c3 {[%emt 0:01:17]} bxc3 {[%emt 0:00:38]} 31. Rxc3 {[%emt 0:00:20]} Kd6 {[%emt 0:00:08]} 32. Nc4+ {[%emt 0:04:35]} Nxc4+ {[%emt 0:00:06]} 33. Bxc4 $15 {[%emt 0:00:15][%mdl 4096] Endgame KRB-KRN} Nd4 {[%emt 0:00:15]} 34. Rc1 {[%emt 0:00:34]} Rf8 {[%emt 0:00:10]} 35. Bd3 {[%emt 0:03:08][%cal Oe4e5]} e5 {[%emt 0:02:51]} 36. Bc4 {[%emt 0:01:43]} g5 {[%emt 0:00:47]} 37. Rd1 {[%emt 0:02:03]} Rf4 {[%emt 0:00:12]} 38. Be2 {[%emt 0:00:53]} Kc7 {[%emt 0:00:39][%cal Od4e2] ...Nxe2! is the strong threat.} 39. g3 {[%emt 0:01:32]} Rf8 {[%emt 0:00:17][%cal Oc7d6]} 40. Rc1 {[%emt 0:01:23]} Kc6 {[%emt 0:00:55]} 41. Rc3 {[%emt 0:00:18]} Rb8 {[%emt 0:00:35]} 42. Bc4 {[%emt 0:00:09] The position is equal.} Kd6 {[%emt 0:00:34]} 43. Kf2 {[%emt 0:00:38]} Rf8+ {[%emt 0:00:25]} 44. Kg2 {[%emt 0:00:08]} h5 {[%emt 0:00:46]} 45. Rc1 {[%emt 0:00:34]} Ke7 {[%emt 0:00:51]} 46. Rf1 {[%emt 0:01:13]} Rxf1 {[%emt 0:00:31]} 47. Kxf1 $11 {[%emt 0:00:08] KB-KN} h4 {[%emt 0:00:33]} 48. g4 {[%emt 0:00:59]} Kd6 {[%emt 0:00:29]} 49. Kf2 {[%emt 0:00:22]} Nc6 {[%emt 0:00:25]} 50. Ke3 {[%emt 0:00:16]} Ne7 {[%emt 0:00:07]} 51. Kd3 {[%emt 0:01:31]} Nc6 {[%emt 0:00:58]} 52. Ke3 {[%emt 0:00:10]} Nb4 {[%emt 0:00:24]} 53. Kd2 {[%emt 0:00:17]} Nc6 {[%emt 0:00:23]} 54. Ke3 {[%emt 0:00:06]} Nd4 {[%emt 0:00:15]} 55. Kd2 {[%emt 0:00:47] Weighted Error Value: White=0.06 (flawless) /Black=0.05 (flawless)   Inaccurate:     	White=1     	Black=3      OK:         	White=19    	Black=18     Best:        	---       	Black=3} 1/2-1/2

[Event "FIDE World School-ch O-15 2025"]
[Site "Vrnjacka Banja"]
[Date "2025.03.22"]
[Round "4.5"]
[White "Leu, Dragos Stefan"]
[Black "Khaleev, Timofey D"]
[Result "0-1"]
[Annotator "TA"]
[ECO "B36"]
[WhiteElo "2165"]
[BlackElo "1919"]
[PlyCount "80"]
[EventDate "2025.03.19"]
[EventType "swiss"]
[EventCountry "SRB"]
[SourceTitle "playchess.com"]
[Source "ChessBase"]
[SourceQuality "1"]
[TimeControl "5400+30"]

{[%evp 24,80,15,0,0,0,0,0,0,0,0,0,0,0,0,0,0,0,0,0,0,0,0,-122,-118,-125,-123,-120,-127,-110,-110,-120,-120,-122,-125,-120,-122,-201,-200,-189,-200,-226,-218,-205,-275,-265,-197,-233,-199,-191,-181,-222,-220,-213,-200,-220,-215,-235,-219]} 1. e4 {[%emt 0:00:01]} c5 {[%emt 0:00:04]} 2. Nf3 {[%emt 0:00:03]} g6 {[%emt 0:00:04]} 3. d4 {[%emt 0:00:09]} cxd4 {[%emt 0:00:04]} 4. Nxd4 {[%emt 0:00:07]} Nc6 {[%emt 0:00:03]} 5. c4 {[%emt 0:00:17]} Nf6 {[%emt 0:00:05]} 6. Nc3 {[%emt 0:00:03]} Nxd4 {[%emt 0:00:04]} 7. Qxd4 {[%emt 0:00:06]} d6 {[%emt 0:00:03]} 8. Be3 {[%emt 0:01:09]} Bg7 {[%emt 0:00:05]} 9. f3 {[%emt 0:00:16]} O-O {[%emt 0:00:06]} 10. Qd2 {[%emt 0:00:02]} Qa5 {[%emt 0:00:06]} 11. Be2 {[%emt 0:22:27]} Be6 {[%emt 0:00:52]} 12. O-O {[%emt 0:06:10]} Rfc8 {[%emt 0:00:45]} 13. b3 {[%emt 0:13:44]} a6 {[%emt 0:01:13] B36: Sicilian: Maroczy Bind: Gurgenidze System.} 14. Rab1 {[%emt 0:27:29]} b5 {[%emt 0:12:23][%cal Rb5c4]} 15. b4 {[%emt 0:01:28]} Qc7 {[%emt 0:01:22] The position is equal.} 16. Nd5 {[%emt 0:01:42]} Nxd5 {[%emt 0:03:06]} 17. exd5 {[%emt 0:01:19]} Bf5 {[%emt 0:00:30]} 18. Rbc1 {[%emt 0:00:08]} bxc4 {[%emt 0:00:44]} 19. Bxc4 $146 {[%emt 0:12:47]} ({Predecessor:} 19. Rxc4 Qb7 20. Rfc1 Rxc4 21. Rxc4 Bd7 22. Bh6 Bb5 23. Rh4 Bf6 24. Bxb5 axb5 25. Bg5 Bxg5 26. Qxg5 {0-1 Su,K (1853)-Brady,T (2022) Dulles Skyline op-A 2022 (6)}) 19... Qb7 {[%emt 0:04:00]} 20. a4 {[%emt 0:00:59][%cal Ba2a4,Ba4a5][%mdl 32]} Bd7 $36 {[%emt 0:02:00][%mdl 2048] White is under pressure.} 21. a5 $1 {[%emt 0:03:36]} Bb5 {[%emt 0:03:06]} 22. Bxb5 {[%emt 0:01:20]} Qxb5 {[%emt 0:00:48]} 23. Rxc8+ {[%emt 0:02:40]} (23. Bg5 $11 {keeps the balance.}) 23... Rxc8 $17 {[%emt 0:00:05] Black keeps a firm grip on the game.} 24. Rc1 {[%emt 0:00:14]} Rxc1+ 25. Qxc1 {[%emt 0:00:01] White wants to mate with Qc8+.} Qxb4 {[%emt 0:04:23][%mdl 4096] Endgame KQB-KQB. Black is a pawn up.} 26. Qc8+ {[%emt 0:04:23]} Bf8 {[%emt 0:00:07]} 27. Kf1 {[%emt 0:00:47] [#] Wards off Qe1+} Qb5+ {[%emt 0:01:03]} ({Much weaker is} 27... Qxa5 $6 28. Bh6 Qb5+ 29. Ke1 Qa5+ 30. Kf1 Qb5+ 31. Ke1 Qa5+ 32. Ke2 Qb5+ 33. Ke1 $11) 28. Kf2 {[%emt 0:00:27]} Qxa5 {[%emt 0:06:31]} 29. Qa8 {[%emt 0:00:13] [#] Bh6 would now be deadly.} Qb4 $1 {[%emt 0:05:19]} 30. Qxa6 {[%emt 0:00:51]} (30. g4 $17 {was called for.} Qb2+ 31. Kg1 Qa1+ 32. Kg2 Qb2+ 33. Kg1) 30... Qh4+ $19 {[%emt 0:00:22]} 31. Kf1 {[%emt 0:00:11]} Qxh2 {[%emt 0:00:16]} 32. Qa8 {[%emt 0:00:34]} Qh1+ {[%emt 0:01:43]} 33. Kf2 {[%emt 0:00:07]} Qh4+ {[%emt 0:00:03]} 34. Kf1 {[%emt 0:00:15]} e6 {[%emt 0:00:43]} 35. Qc6 {[%emt 0:01:21] Black is clearly better.} exd5 {[%emt 0:00:59]} 36. Qxd5 {[%emt 0:00:07]} Be7 {[%emt 0:01:18]} 37. Bd4 {[%emt 0:00:32]} Bf6 {[%emt 0:01:13]} 38. Bf2 {[%emt 0:00:28]} Qf4 {[%emt 0:01:01]} 39. g3 {[%emt 0:00:11]} Qe5 {[%emt 0:00:20]} 40. Qa8+ {[%emt 0:00:18]} Kg7 {[%emt 0:00:04] Weighted Error Value: White=0.18 (very precise) /Black=0.05 (flawless)   Mistake:       	White=2     	---        OK:         	White=11    	Black=17     Best:        	White=2     	Black=2      Strong:       	White=1     	Black=1} 0-1